bitfinex/quotes_ETHUSD_20241124
["timestamp","ask_amount","ask_price","bid_price","bid_amount"]
[1732434545400,0.02469818,3413.1,3413.0,4.0265]
[1732434552600,0.02469818,3413.1,3413.0,4.43528914]
[1732434554073,0.02469818,3413.1,3413.0,4.98528914]
[1732434554403,0.02469818,3413.1,3413.0,5.14420501]
[1732434555278,0.02469818,3413.1,3413.0,8.14420501]
[1732434555504,0.02469818,3413.1,3413.0,9.01712396]
[1732434564017,0.1,3414.5,3413.2,0.55]
[1732434564248,0.1,3414.5,3413.5,0.7325]
[1732434564407,0.1,3414.5,3413.7,3.0]
[1732434564613,0.1,3414.5,3413.8,5.68088998]
[1732434564812,0.1,3414.5,3413.8,4.95829089]
[1732434566346,0.1,3414.5,3413.9,0.55]
[1732434566512,0.1,3414.5,3414.0,3.78321064]
[1732434566713,0.1,3414.5,3414.2,0.55]
[1732434566945,0.1,3414.5,3414.4,0.55]
[1732434567158,0.1,3414.5,3414.4,3.2928]
[1732434567822,0.1,3414.5,3414.4,3.8428]
[1732434568015,0.1,3414.5,3414.4,3.2928]
[1732434568341,0.1,3414.5,3414.4,4.27666091]
[1732434569335,0.1,3414.6,3414.5,0.55]
[1732434569550,0.1,3414.6,3414.5,3.8427]
[1732434570566,0.9834,3414.6,3414.5,3.8427]
[1732434570855,0.9834,3414.6,3414.5,3.2927]
[1732434572387,1.25512958,3414.6,3414.5,3.2927]
[1732434572755,0.9834,3414.6,3414.5,3.2927]
[1732434574377,1.2553692,3414.6,3414.5,3.2927]
[1732434574680,0.9834,3414.6,3414.5,3.2927]
[1732434574981,1.25537959,3414.6,3414.5,3.2927]
[1732434577770,1.25540791,3414.6,3414.5,3.2927]
[1732434579593,1.15540791,3414.6,3414.5,3.8427]
[1732434580364,1.15540791,3414.6,3414.5,3.2927]
[1732434581377,0.8834,3414.6,3414.5,3.2927]
[1732434581582,1.15560159,3414.6,3414.5,3.2927]
[1732434584906,1.25560159,3414.6,3414.5,3.8427]
[1732434589191,1.25588828,3414.6,3414.5,3.8427]
[1732434589505,0.47248828,3414.6,3414.5,3.8427]
[1732434592571,0.47260093,3414.6,3414.5,3.8427]
[1732434596103,0.2,3414.6,3414.5,3.8427]
[1732434596405,0.47260869,3414.6,3414.5,3.8427]
[1732434597421,1.22560869,3414.6,3414.5,3.2927]
[1732434599693,1.22561274,3414.6,3414.5,3.2927]
[1732434600026,1.22562119,3414.6,3414.5,3.2927]
[1732434600497,0.47262119,3414.6,3414.5,3.8427]
[1732434600703,0.47262119,3414.6,3414.5,4.22697]
[1732434602302,0.47262119,3414.6,3414.5,3.8427]
[1732434605444,0.47256769,3414.6,3414.5,3.8427]
[1732434605827,0.47258237,3414.6,3414.5,3.8427]
[1732434607492,0.47254668,3414.6,3414.5,3.8427]
[1732434609444,1.28234668,3414.6,3414.5,3.2927]
[1732434609800,1.28231619,3414.6,3414.5,3.2927]
[1732434614750,0.47251619,3414.6,3414.5,3.2927]
[1732434614916,0.37251619,3414.6,3414.5,3.2927]
[1732434615120,0.47251619,3414.6,3414.5,3.2927]
[1732434615339,0.47251619,3414.6,3414.5,3.8427]
[1732434616323,0.47251619,3414.6,3414.5,3.2927]
[1732434618821,1.25361619,3414.6,3414.5,3.2927]
[1732434620229,2.24087361,3414.6,3414.5,3.2927]
[1732434621356,1.25361619,3414.6,3414.5,3.2927]
[1732434623637,1.25354178,3414.6,3414.5,3.2927]
[1732434630675,0.9811,3414.6,3414.5,3.2927]
[1732434630974,1.25347814,3414.6,3414.5,3.2927]
[1732434631336,0.9811,3414.6,3414.5,3.2927]
[1732434631553,1.25349366,3414.6,3414.5,3.2927]
[1732434632036,1.30925648,3414.6,3414.5,3.2927]
[1732434636591,1.30925648,3414.6,3414.5,13.2927]
[1732434636790,1.24756732,3414.6,3414.5,13.2927]
[1732434638181,0.46646732,3414.6,3414.5,13.2927]
[1732434638362,0.4667054,3414.6,3414.5,14.62197]
[1732434639500,0.52833076,3414.6,3414.5,14.62197]
[1732434641827,1.27953076,3414.6,3414.5,13.2927]
[1732434642468,1.2179054,3414.6,3414.5,13.2927]
[1732434642994,1.1179054,3414.6,3414.5,13.2927]
[1732434643212,0.52833076,3414.6,3414.5,13.2927]
[1732434645194,0.4667054,3414.6,3414.5,13.2927]
[1732434645413,0.19407366,3414.6,3414.5,13.2927]
[1732434645635,0.46679693,3414.6,3414.5,13.2927]
[1732434645943,0.52842229,3414.6,3414.5,13.2927]
[1732434646734,0.46679693,3414.6,3414.5,13.2927]
[1732434647340,0.52840682,3414.6,3414.5,13.2927]
[1732434649039,0.25568355,3414.6,3414.5,13.2927]
[1732434649241,0.52849545,3414.6,3414.5,13.2927]
[1732434652633,0.25568355,3414.6,3414.5,13.2927]
[1732434652844,0.52834155,3414.6,3414.5,13.2927]
[1732434656314,0.25568355,3414.6,3414.5,13.2927]
[1732434656518,0.52833484,3414.6,3414.5,13.2927]
[1732434657406,0.46672495,3414.6,3414.5,13.2927]
[1732434657620,0.52153884,3414.6,3414.5,13.2927]
[1732434660016,0.24888755,3414.6,3414.5,13.2927]
[1732434660222,0.52151677,3414.6,3414.5,13.2927]
[1732434660626,1.27411677,3414.6,3414.5,13.24084617]
[1732434660829,1.21930288,3414.6,3414.5,13.24084617]
[1732434661212,1.27411677,3414.6,3414.5,13.24084617]
[1732434661460,2.26137419,3414.6,3414.5,13.24084617]
[1732434662254,5.73740922,3414.6,3414.5,13.24084617]
[1732434662559,5.73712468,3414.6,3414.5,13.24084617]
[1732434662726,5.46478,3414.6,3414.5,13.24084617]
[1732434663054,5.73712951,3414.6,3414.5,13.24084617]
[1732434663439,5.73712951,3414.6,3414.5,12.14414527]
[1732434663630,5.73712951,3414.6,3414.5,11.50694527]
[1732434664375,5.73712951,3414.6,3414.5,11.09654527]
[1732434664657,5.73712951,3414.6,3414.5,10.91674527]
[1732434664861,5.73712951,3414.6,3414.5,10.72914527]
[1732434665024,5.73712951,3414.6,3414.5,10.53274527]
[1732434665375,5.73712951,3414.6,3414.5,7.92995428]
[1732434665664,5.83712951,3414.6,3414.5,6.85577428]
[1732434666016,5.56478,3414.6,3414.5,6.85577428]
[1732434666318,5.83682079,3414.6,3414.5,6.85577428]
[1732434666518,5.83682079,3414.6,3414.5,9.78437428]
[1732434667127,1.27352834,3414.6,3414.5,9.78437428]
[1732434667353,2.20597187,3414.6,3414.5,9.78437428]
[1732434667661,2.26063492,3414.6,3414.5,9.78437428]
[1732434668161,1.50803492,3414.6,3414.5,9.78437428]
[1732434676897,1.23599413,3414.6,3414.5,9.78437428]
[1732434677112,1.50814817,3414.6,3414.5,9.78437428]
[1732434677416,1.506372,3414.6,3414.5,9.78437428]
[1732434680513,1.23421796,3414.6,3414.5,9.78437428]
[1732434680808,1.50640564,3414.6,3414.5,9.78437428]
[1732434686466,1.50431789,3414.6,3414.5,9.78437428]
[1732434692183,0.51706047,3414.6,3414.5,10.51687428]
[1732434692478,0.46417359,3414.6,3414.5,10.51687428]
[1732434692939,0.51188791,3414.6,3414.5,10.51687428]
[1732434693134,0.51188791,3414.6,3414.5,9.78437428]
[1732434693135,1.29868791,3414.6,3414.5,9.78437428]
[1732434693339,1.33529763,3414.6,3414.5,9.78437428]
[1732434693578,1.29868791,3414.6,3414.5,9.78437428]
[1732434694377,1.29868791,3414.6,3414.5,9.37027428]
[1732434694580,1.29868791,3414.6,3414.5,9.17037428]
[1732434694790,1.29868791,3414.6,3414.5,8.74877429]
[1732434694949,1.29868791,3414.6,3414.5,8.56237429]
[1732434695456,1.29897669,3414.6,3414.5,8.56237429]
[1732434695794,1.29897669,3414.6,3414.5,8.37477429]
[1732434696980,1.78101505,3414.6,3414.5,8.37477429]
[1732434697187,4.78101505,3414.6,3414.5,8.37477429]
[1732434700829,4.81762696,3414.6,3414.5,8.37477429]
[1732434701414,4.78101505,3414.6,3414.5,8.37477429]
[1732434702419,4.7808646,3414.6,3414.5,8.37477429]
[1732434703622,1.29882624,3414.6,3414.5,8.37477429]
[1732434703784,2.28608366,3414.6,3414.5,8.37477429]
[1732434703980,1.49928366,3414.6,3414.5,8.37477429]
[1732434704736,1.22695765,3414.6,3414.5,8.37477429]
[1732434705024,0.23970023,3414.6,3414.5,10.01800172]
[1732434705239,0.19198591,3414.6,3414.5,9.10727429]
[1732434705793,0.46426353,3414.6,3414.5,9.10727429]
[1732434706237,0.5103767,3414.6,3414.5,9.10727429]
[1732434706408,0.51038177,3414.6,3414.5,9.10727429]
[1732434707522,0.51038177,3414.6,3414.5,8.37477429]
[1732434708031,0.4642686,3414.6,3414.5,8.37477429]
[1732434708597,0.51038373,3414.6,3414.5,8.37477429]
[1732434709234,0.51038373,3414.6,3414.5,4.80711487]
[1732434711715,0.98212067,3414.6,3414.5,4.80711487]
[1732434712042,0.51038373,3414.6,3414.5,4.80711487]
[1732434713701,0.51038373,3414.6,3414.5,3.48005259]
[1732434713901,0.51043175,3414.6,3414.5,3.48005259]
[1732434715260,0.51043175,3414.6,3414.5,4.21255259]
[1732434717718,0.51052835,3414.6,3414.5,4.21255259]
[1732434718155,0.23810104,3414.6,3414.5,4.21255259]
[1732434718458,0.41053182,3414.6,3414.5,4.63380785]
[1732434720141,0.51053182,3414.6,3414.5,4.63380785]
[1732434720363,0.51053182,3414.6,3414.5,4.21255259]
[1732434721426,1.49778924,3414.6,3414.5,4.21255259]
[1732434721625,1.49778924,3414.6,3414.5,3.48005259]
[1732434723458,0.41053182,3414.6,3414.5,4.21255259]
[1732434723756,0.13810104,3414.6,3414.5,4.63380785]
[1732434723959,0.41045167,3414.6,3414.5,4.63380785]
[1732434724741,0.41045167,3414.6,3414.5,4.21255259]
[1732434725723,0.41045167,3414.6,3414.5,3.48005259]
[1732434726955,1.22265167,3414.6,3414.5,3.48005259]
[1732434727456,0.95030104,3414.6,3414.5,3.48005259]
[1732434727662,1.22262113,3414.6,3414.5,3.48005259]
[1732434727867,1.22263154,3414.6,3414.5,3.48005259]
[1732434728236,0.41043154,3414.6,3414.5,4.21255259]
[1732434728466,0.41043154,3414.6,3414.5,4.63380785]
[1732434731180,0.13810104,3414.6,3414.5,4.63380785]
[1732434731540,0.41048445,3414.6,3414.5,4.63380785]
[1732434732034,0.51048445,3414.6,3414.5,4.21255259]
[1732434732631,0.41048445,3414.6,3414.5,4.21255259]
[1732434732837,0.31849854,3414.6,3414.5,4.21255259]
[1732434733058,0.04611513,3414.6,3414.5,4.21255259]
[1732434736277,0.09198591,3414.8,3414.5,4.21255259]
[1732434736436,0.27236476,3414.7,3414.6,0.42125526]
[1732434736770,0.31719224,3414.7,3414.6,3.34985526]
[1732434737293,0.40917815,3414.7,3414.6,3.34985526]
[1732434737770,0.31719224,3414.7,3414.6,3.34985526]
[1732434737942,0.04482748,3414.7,3414.6,3.34985526]
[1732434738339,0.09198591,3414.9,3414.6,3.34985526]
[1732434738536,0.27234558,3414.8,3414.7,0.46338079]
[1732434738872,0.31717306,3414.8,3414.7,3.39188079]
[1732434739079,0.31717306,3414.8,3414.7,2.9285]
[1732434741054,0.04482748,3414.8,3414.7,3.661]
[1732434741254,0.09198591,3415.1,3414.7,3.661]
[1732434741454,0.27237326,3415.0,3414.9,4.4e-07]
[1732434741674,0.27237326,3415.0,3414.9,3.9e-07]
[1732434741981,0.09198591,3415.1,3414.9,3.9e-07]
[1732434742560,0.2724047,3415.0,3414.9,3.9e-07]
[1732434744143,0.09198591,3415.1,3414.9,3.9e-07]
[1732434744871,0.27238789,3415.0,3414.9,3.9e-07]
[1732434745659,0.09198591,3415.1,3414.9,3.9e-07]
[1732434745880,0.27239709,3415.0,3414.9,3.9e-07]
[1732434746390,0.09198591,3415.1,3414.9,3.9e-07]
[1732434747257,0.27241883,3415.0,3414.9,3.9e-07]
[1732434749869,0.19198591,3415.1,3414.9,3.9e-07]
[1732434750105,0.27241377,3415.0,3414.9,3.9e-07]
[1732434751808,0.31733936,3415.0,3414.9,3.9e-07]
[1732434753210,0.04492559,3415.0,3414.9,3.9e-07]
[1732434753775,0.31735801,3415.0,3414.9,3.9e-07]
[1732434756920,0.04492559,3415.0,3414.9,3.9e-07]
[1732434757086,0.31745181,3415.0,3414.9,3.9e-07]
[1732434764324,0.04492559,3415.0,3414.9,3.9e-07]
[1732434764529,0.31772989,3415.0,3414.9,3.9e-07]
[1732434771640,0.04492559,3415.0,3414.9,3.9e-07]
[1732434771935,0.31786827,3415.0,3414.9,3.9e-07]
[1732434772139,0.31787226,3415.0,3414.9,3.9e-07]
[1732434773815,0.94438591,3415.1,3415.0,12.66746374]
[1732434774017,0.94438591,3415.1,3415.0,18.52406374]
[1732434774324,1.92968387,3415.1,3415.0,18.52406374]
[1732434777331,0.09198591,3415.1,3415.0,18.52406374]
[1732434779245,0.09198591,3415.1,3415.0,20.37647011]
[1732434779941,0.0008,3415.2,3415.0,20.37647011]
[1732434780152,0.09198591,3415.1,3415.0,20.37647011]
[1732434782610,0.0008,3415.2,3415.0,20.37647011]
[1732434782822,0.09198591,3415.1,3415.0,20.37647011]
[1732434783447,0.09198591,3415.1,3415.0,7.70900637]
[1732434783648,0.09198591,3415.1,3415.0,5.8566]
[1732434784549,0.0008,3415.2,3415.1,0.55]
[1732434784720,0.0008,3415.2,3415.1,7.19543961]
[1732434790732,0.0008,3415.2,3415.1,6.76731677]
[1732434791113,0.0008,3415.2,3415.1,7.44484986]
[1732434791346,0.0008,3415.2,3415.1,10.45286395]
[1732434791548,0.0008,3415.2,3415.1,10.85440002]
[1732434794671,0.0008,3415.2,3415.1,7.85440002]
[1732434798688,0.0008,3415.2,3415.1,10.85440002]
[1732434802598,0.0008,3415.2,3415.1,10.45286395]
[1732434805236,0.0008,3415.2,3415.1,10.09204718]
[1732434806029,0.0008,3415.2,3415.1,10.38394718]
[1732434808004,0.0008,3415.2,3415.1,11.14630002]
[1732434812267,0.0008,3415.2,3415.1,10.74476395]
[1732434812548,0.0008,3415.2,3415.1,10.38394718]
[1732434812738,0.0008,3415.2,3415.1,10.78548325]
[1732434813256,0.0008,3415.2,3415.1,10.38394718]
[1732434813441,0.0008,3415.2,3415.1,10.37593309]
[1732434816157,0.0008,3415.2,3415.1,10.38394718]
[1732434816316,0.0008,3415.2,3415.1,10.37593309]
[1732434818659,0.0008,3415.2,3415.1,10.74476395]
[1732434823035,0.0008,3415.2,3415.1,7.74476395]
[1732434823238,0.0008,3415.2,3415.1,10.74476395]
[1732434824076,0.0008,3415.2,3415.1,10.73674986]
[1732434824275,0.0008,3415.2,3415.1,10.37593309]
[1732434825287,0.8049,3415.2,3415.1,6.53403309]
[1732434825600,0.0008,3415.2,3415.1,6.53403309]
[1732434826282,0.0008,3415.2,3415.1,6.82593309]
[1732434826656,0.0008,3415.2,3415.1,7.37593309]
[1732434829181,0.0008,3415.2,3415.1,10.37593309]
[1732434830607,0.0008,3415.2,3415.1,11.13821117]
[1732434831090,0.0008,3415.2,3415.1,8.13821117]
[1732434831291,0.0008,3415.2,3415.1,7.73674986]
[1732434831701,0.0008,3415.2,3415.1,11.14622526]
[1732434843120,0.0008,3415.2,3415.1,8.14622526]
[1732434843493,0.0008,3415.2,3415.1,11.14622526]
[1732434862745,0.0008,3415.2,3415.1,10.78540849]
[1732434862969,0.0008,3415.2,3415.1,10.4854944]
[1732434863263,0.7846,3415.2,3415.1,10.4854944]
[1732434867163,0.7846,3415.2,3415.1,9.9354944]
[1732434868354,0.7846,3415.2,3415.1,10.4854944]
[1732434868742,0.7969,3415.9,3415.1,10.4854944]
[1732434868953,0.7969,3415.9,3415.2,4.90082341]
[1732434869147,0.7969,3415.9,3415.4,0.55]
[1732434869359,0.7969,3415.9,3415.6,0.55]
[1732434869564,0.7969,3415.9,3415.8,0.55]
[1732434869744,0.7969,3415.9,3415.8,6.4059]
[1732434871337,0.7969,3415.9,3415.8,6.15817397]
[1732434871951,0.7969,3415.9,3415.8,7.32399137]
[1732434873635,0.1529726,3416.5,3415.8,7.32399137]
[1732434873876,0.83166922,3416.4,3415.9,0.85227397]
[1732434874072,0.83166922,3416.4,3416.1,0.55]
[1732434874258,0.83166922,3416.4,3416.2,6.5812974]
[1732434874449,0.83166922,3416.4,3416.2,5.8555]
[1732434875078,0.92365513,3416.4,3416.2,5.8555]
[1732434876973,0.83166922,3416.4,3416.2,5.8555]
[1732434877662,0.92365513,3416.4,3416.2,5.8555]
[1732434877862,0.92365513,3416.4,3416.2,6.49605]
[1732434880955,0.83166922,3416.4,3416.2,6.49605]
[1732434881182,0.92365513,3416.4,3416.2,6.49605]
[1732434885004,0.92365513,3416.4,3416.2,5.8555]
[1732434902785,0.1,3416.3,3416.2,5.8555]
[1732434902987,0.92609316,3416.3,3416.2,5.8555]
[1732434904281,0.92609316,3416.3,3416.2,5.0222]
[1732434904480,0.92609316,3416.3,3416.2,1.36654361]
[1732434904706,1.91139112,3416.3,3416.2,1.36654361]
[1732434913917,0.82609316,3416.3,3416.2,1.36654361]
[1732434917927,0.02839316,3416.3,3416.2,1.36654361]
[1732434918086,0.02839316,3416.3,3416.2,1.58266797]
[1732434921636,0.12037907,3416.3,3416.2,1.58266797]
[1732434921942,0.12037907,3416.3,3416.2,2.37736797]
[1732434922941,0.02839316,3416.3,3416.2,2.37736797]
[1732434923442,0.02655471,3416.3,3416.2,2.37736797]
[1732434923639,0.1529726,3416.5,3416.2,2.37736797]
[1732434923840,0.02655471,3416.4,3416.3,0.2377368]
[1732434924044,0.02655471,3416.4,3416.3,10.5817368]
[1732434924247,0.1529726,3416.5,3416.3,10.5817368]
[1732434924549,0.02655471,3416.4,3416.3,10.5817368]
[1732434924908,0.1529726,3416.5,3416.3,10.5817368]
[1732434925109,0.1529726,3416.5,3416.3,8.02725146]
[1732434925348,0.02655471,3416.4,3416.3,8.02725146]
[1732434925844,0.1529726,3416.5,3416.3,8.02725146]
[1732434926010,0.09198591,3416.4,3416.3,8.02725146]
[1732434926209,0.09198591,3416.4,3416.3,6.64529221]
[1732434926540,0.11854062,3416.4,3416.3,6.64529221]
[1732434927210,0.11854062,3416.4,3416.3,7.38929143]
[1732434927522,0.09198591,3416.4,3416.3,7.38929143]
[1732434928313,0.1529726,3416.5,3416.3,7.38929143]
[1732434928708,0.02655471,3416.4,3416.3,8.17619143]
[1732434929116,0.1529726,3416.5,3416.3,8.17619143]
[1732434929315,0.1529726,3416.5,3416.4,1.1e-07]
[1732434929549,0.1529726,3416.5,3416.4,12.55915416]
[1732434931814,0.17952731,3416.5,3416.4,12.55915416]
[1732434934552,0.17832054,3416.5,3416.4,12.55915416]
[1732434934932,0.17640054,3416.5,3416.4,12.55915416]
[1732434939037,1.00110054,3416.5,3416.4,12.55915416]
[1732434939240,1.21511898,3416.5,3416.4,12.55915416]
[1732434939443,1.31511898,3416.5,3416.4,12.55915416]
[1732434941341,1.00110054,3416.5,3416.4,12.55915416]
[1732434943479,1.02246243,3416.5,3416.4,12.55915416]
[1732434956001,1.02246243,3416.5,3416.4,7.07040753]
[1732434959397,0.19776243,3416.5,3416.4,7.07040753]
[1732434959784,0.14984583,3416.5,3416.4,7.07040753]
[1732434963181,0.95734583,3416.5,3416.4,7.07040753]
[1732434963492,1.1708088,3416.5,3416.4,7.07040753]
[1732434964914,2.04264379,3416.5,3416.4,7.07040753]
[1732434968205,2.03863379,3416.5,3416.4,7.07040753]
[1732434969116,1.93863379,3416.5,3416.4,7.07040753]
[1732434969329,0.14583583,3416.5,3416.4,7.07040753]
[1732434970644,2.03863379,3416.5,3416.4,7.07040753]
[1732434970794,5.65388401,3416.5,3416.4,7.07040753]
[1732434971494,6.13019374,3416.5,3416.4,7.07040753]
[1732434973899,4.66858605,3416.5,3416.4,7.07040753]
[1732434974106,5.65388401,3416.5,3416.4,7.07040753]
[1732434979614,6.63918197,3416.5,3416.4,7.07040753]
[1732434979913,5.65388401,3416.5,3416.4,7.07040753]
[1732434980611,6.63918197,3416.5,3416.4,7.07040753]
[1732434980833,5.65388401,3416.5,3416.4,7.07040753]
[1732434983250,5.65388401,3416.5,3416.4,6.78320753]
[1732434983547,6.63918197,3416.5,3416.4,5.59160754]
[1732434983752,6.63918197,3416.5,3416.4,4.17892832]
[1732434983914,6.63918197,3416.5,3416.4,3.44002832]
[1732434984114,2.21858605,3416.5,3416.4,2.67523126]
[1732434984310,5.65388401,3416.5,3416.4,2.27673126]
[1732434984546,5.65388401,3416.5,3416.4,1.84493126]
[1732434985957,2.65388401,3416.5,3416.4,1.84493126]
[1732434986154,2.03863379,3416.5,3416.4,1.84493126]
[1732434987716,1.23113379,3416.5,3416.4,1.84493126]
[1732434989351,2.03903379,3416.5,3416.4,0.40333126]
[1732434989551,6.02433175,3416.5,3416.4,0.40333126]
[1732434989731,7.03476637,3416.5,3416.4,0.08442793]
[1732434989930,6.99817163,3416.5,3416.4,0.08442793]
[1732434990156,0.09198591,3415.3,3415.2,0.8315]
[1732434990335,1.07728387,3415.3,3415.2,0.8315]
[1732434990533,1.07728387,3415.3,3415.2,3.7595]
[1732434991465,0.09198591,3415.3,3415.2,3.7595]
[1732434993371,0.19198591,3415.3,3415.2,3.7595]
[1732434993665,0.19198591,3415.3,3415.2,2.928]
[1732434993959,1.17728387,3415.3,3415.2,2.928]
[1732435001335,1.07728387,3415.3,3415.2,2.928]
[1732435001652,1.17728387,3415.3,3415.2,2.928]
[1732435003058,0.19198591,3415.3,3415.2,2.928]
[1732435003260,1.17728387,3415.3,3415.2,3.30395]
[1732435003869,1.17728387,3415.3,3415.2,4.11305]
[1732435004100,1.17728387,3415.3,3415.2,3.7371]
[1732435005543,1.17728387,3415.3,3415.2,2.928]
[1732435017606,0.94450221,3415.3,3415.2,2.928]
[1732435039351,0.98529796,3415.3,3415.2,2.928]
[1732435047441,0.98529796,3415.3,3415.2,3.6979]
[1732435047613,0.98529796,3415.3,3415.2,4.06769]
[1732435053817,0.98529796,3415.3,3415.2,2.928]
[1732435055936,1.78939796,3415.3,3415.2,2.928]
[1732435070244,0.98529796,3415.3,3415.2,2.928]
[1732435076472,1.23431261,3415.5,3415.2,2.928]
[1732435076635,0.98529796,3415.3,3415.2,2.928]
[1732435078259,1.20725902,3415.3,3415.2,2.928]
[1732435078732,2.00575902,3415.3,3415.2,2.928]
[1732435079486,5.99105698,3415.3,3415.2,2.928]
[1732435079782,2.00575902,3415.3,3415.2,2.928]
[1732435080785,2.99105698,3415.3,3415.2,2.928]
[1732435081005,2.99105698,3415.3,3415.2,2.27989658]
[1732435081203,5.99105698,3415.3,3415.2,2.27989658]
[1732435082285,5.99105698,3415.3,3415.2,2.18989658]
[1732435084156,2.00575902,3415.3,3415.2,2.18989658]
[1732435084356,2.99105698,3415.3,3415.2,2.18989658]
[1732435084547,5.99105698,3415.3,3415.2,2.18989658]
[1732435085284,2.00575902,3415.3,3415.2,2.18989658]
[1732435088093,1.02046106,3415.3,3415.2,2.18989658]
[1732435088416,2.00575902,3415.3,3415.2,2.18989658]
[1732435089815,5.99105698,3415.3,3415.2,2.18989658]
[1732435091205,5.99105698,3415.3,3415.2,1.77779658]
[1732435099895,1.20725902,3415.3,3415.2,1.77779658]
[1732435104439,0.98529796,3415.3,3415.2,1.77779658]
[1732435105717,0.98529796,3415.3,3415.2,2.56259658]
[1732435109530,0.49209716,3415.6,3415.2,2.56259658]
[1732435109743,0.8223,3416.2,3415.3,0.7848]
[1732435109903,0.98529796,3415.6,3415.4,4.0781]
[1732435110099,1.16867,3416.4,3415.5,0.7848]
[1732435110305,1.16867,3416.4,3415.4,4.0781]
[1732435110306,0.98529796,3415.9,3415.7,0.7848]
[1732435110607,0.98529796,3415.9,3415.8,4.8626]
[1732435111020,1.168365,3416.9,3415.9,0.7848]
[1732435111231,0.98529796,3416.3,3416.1,0.7848]
[1732435111544,0.98529796,3416.3,3416.2,4.8622]
[1732435112364,0.98529796,3416.4,3416.3,0.7848]
[1732435112650,0.98529796,3416.4,3416.3,4.8621]
[1732435114134,0.97729796,3416.4,3416.3,4.8621]
[1732435118301,3.0,3417.0,3416.3,5.17043037]
[1732435118507,1.13113379,3416.5,3416.3,5.17043037]
[1732435118844,1.13113379,3416.5,3416.4,0.7757]
[1732435119138,1.13113379,3416.5,3416.4,4.853]
[1732435127876,0.14583583,3416.5,3416.4,4.853]
[1732435128056,0.14583583,3416.5,3416.4,5.36913304]
[1732435128465,1.13113379,3416.5,3416.4,5.36913304]
[1732435128670,1.13113379,3416.5,3416.4,4.853]
[1732435128865,1.13113379,3416.5,3416.4,4.0773]
[1732435132845,0.14583583,3416.5,3416.4,4.0773]
[1732435133048,0.14583583,3416.5,3416.4,4.96932575]
[1732435133354,0.14583583,3416.5,3416.4,5.80162575]
[1732435133554,0.14583583,3416.5,3416.4,6.38178833]
[1732435133850,0.14583583,3416.5,3416.4,5.93244713]
[1732435134061,0.14583583,3416.5,3416.4,5.48976258]
[1732435158134,0.14583583,3416.5,3416.4,4.65746258]
[1732435164264,0.14583583,3416.5,3416.4,4.52582796]
[1732435175092,0.14583583,3416.5,3416.4,3.94566538]
[1732435177781,1.13113379,3416.5,3416.4,3.94566538]
[1732435178438,0.14583583,3416.5,3416.4,3.94566538]
[1732435205424,0.14583583,3416.5,3416.4,4.45700658]
[1732435207020,0.14583583,3416.5,3416.4,5.24220658]
[1732435207317,0.14583583,3416.5,3416.4,6.175204]
[1732435207926,0.14583583,3416.5,3416.4,5.6638628]
[1732435208231,0.14583583,3416.5,3416.4,6.14714567]
[1732435208715,0.14583583,3416.5,3416.4,5.77572326]
[1732435212021,0.14583583,3416.5,3416.4,6.14543233]
[1732435213593,0.14583583,3416.5,3416.4,5.77572326]
[1732435213789,0.14583583,3416.5,3416.4,8.77572326]
[1732435214598,0.14583583,3416.5,3416.4,9.14543233]
[1732435217837,0.14583583,3416.5,3416.4,9.69543233]
[1732435221246,0.14583583,3416.5,3416.4,9.98713233]
[1732435223437,0.14583583,3416.5,3416.4,9.61742326]
[1732435228803,0.14583583,3416.5,3416.4,9.71742326]
[1732435229029,0.01592533,3416.5,3416.4,10.123299]
[1732435229355,0.00090023,3416.5,3416.4,10.123299]
[1732435230113,0.00090023,3416.5,3416.4,7.123299]
[1732435231559,0.00090023,3416.5,3416.4,10.123299]
[1732435233948,1.21839755,3418.0,3417.1,1.0617]
[1732435234252,1.21839755,3418.0,3417.2,4.2082]
[1732435234752,1.21839755,3418.0,3417.2,4.69148287]
[1732435235047,1.21839755,3418.0,3417.3,0.48328287]
[1732435235249,1.21839755,3418.0,3417.4,4.208]
[1732435236432,1.21839755,3418.0,3417.4,4.4996]
[1732435236867,1.21839755,3418.0,3417.4,4.98288287]
[1732435241430,1.21839755,3418.0,3417.5,0.48328287]
[1732435241631,1.21839755,3418.0,3417.6,4.2078]
[1732435244958,1.21839755,3418.0,3417.6,3.9678]
[1732435247149,1.21839755,3418.0,3417.7,0.7573]
[1732435247150,0.43599755,3418.0,3417.7,0.7573]
[1732435247347,0.43599755,3418.0,3417.8,4.4477]
[1732435247880,1.19239755,3418.0,3417.8,4.4477]
[1732435250278,0.7564,3417.9,3417.8,4.4477]
[1732435250438,0.97416955,3417.9,3417.8,4.4477]
[1732435252547,1.95946751,3417.9,3417.8,4.4477]
[1732435258314,1.74169796,3417.9,3417.8,4.4477]
[1732435265123,4.74169796,3417.9,3417.8,4.4477]
[1732435265341,4.77827149,3417.9,3417.8,3.37837062]
[1732435265623,5.29169796,3417.9,3417.8,2.70683742]
[1732435265815,6.01022232,3417.9,3417.8,0.4045735]
[1732435266334,6.04680153,3417.9,3417.8,0.4045735]
[1732435266698,6.01022232,3417.9,3417.8,0.4045735]
[1732435267016,3.8264,3417.8,3417.6,12.657826]
[1732435267222,2.6127325,3417.7,3417.6,12.657826]
[1732435267526,0.55,3417.8,3417.7,0.3131675]
[1732435267691,1.53529796,3417.8,3417.7,0.3131675]
[1732435267892,2.17818232,3417.8,3417.7,0.3131675]
[1732435268130,5.17818232,3417.8,3417.7,0.3131675]
[1732435268341,2.17818232,3417.8,3417.7,0.3131675]
[1732435269932,2.17818232,3417.8,3417.7,1e-08]
[1732435270230,2.17818232,3417.8,3417.7,2.9259]
[1732435270436,6.00458232,3417.8,3417.7,1.8304]
[1732435270590,6.00458232,3417.8,3417.7,1e-08]
[1732435270797,6.00458232,3417.8,3417.6,12.11912601]
[1732435270798,0.8264,3417.7,3417.6,10.96372789]
[1732435271038,4.6162128,3417.7,3417.6,13.88972789]
[1732435271395,4.6162128,3417.7,3417.6,13.31257779]
[1732435272038,4.6162128,3417.7,3417.6,12.96570475]
[1732435272730,4.6162128,3417.7,3417.6,12.01253261]
[1732435273098,4.6162128,3417.7,3417.6,11.48253261]
[1732435273808,4.6162128,3417.7,3417.6,7.67489047]
[1732435274032,3.7898128,3417.7,3417.6,2.0996]
[1732435274329,0.7898128,3417.7,3417.6,2.0996]
[1732435275335,3.0,3417.9,3417.6,2.0996]
[1732435275666,0.98529796,3417.7,3417.6,2.0996]
[1732435277159,1.81169796,3417.7,3417.6,2.0996]
[1732435277937,0.8264,3417.7,3417.6,2.0996]
[1732435278138,0.43599755,3418.0,3417.6,2.0996]
[1732435278347,0.43599755,3418.0,3417.7,0.20996]
[1732435278665,0.42060476,3418.0,3417.8,3.7523]
[1732435278833,0.41848362,3418.0,3417.8,3.7523]